Cogmind - Beta 13 *** ADVENTURER MODE // 2024.05.30 @ 06:34:46 Player: Terra Result: Destroyed by as-73235 with Assembled Blade Performance ------------- Evolutions (1) 500 Regions Visited (3) 600 Robots Destroyed (39) 195 Value Destroyed (789) 789 Prototype IDs (1) 20 Alien Tech Used (0) 0 Bonus (0) 0 TOTAL SCORE: 2104 Bonus ------- None Cogmind --------- Core Integrity 0/400 Matter 300/300 Energy 100/100 System Corruption 0% Temperature Cool (0) Movement Core (350) Ox6 Location -9/Mines Parts ------- > --- POWER (1) -------- (None) > --- PROPULSION (4) --- (None) > --- UTILITY (2) ------ Large Storage Unit Visual Processing Unit > --- WEAPON (2) ------- Light Assault Rifle > --- INVENTORY (15) --- Small Storage Unit Advanced Weight Redist. System Sensor Array Signal Interpreter Actuator Array Actuator Array Light Assault Rifle Mining Laser Peak State ------------ > --- POWER ------------ Light Ion Engine > --- PROPULSION ------- Hover Unit Hover Unit Flight Unit Flight Unit > --- UTILITY ---------- Large Storage Unit Visual Processing Unit > --- WEAPON ----------- Heavy Particle Gun Heavy Particle Gun > --- INVENTORY -------- Light Ion Engine Light Ion Engine Small Storage Unit Sensor Array Signal Interpreter Actuator Array Actuator Array Light Assault Rifle Light Assault Rifle Mining Laser [Rating: 17] Favorites ----------- Power Light Ion Engine Engine Light Ion Engine Propulsion Flight Unit Leg Aluminum Leg Hover Unit Hover Unit Flight Unit Flight Unit Utility Visual Processing Unit Device Sensor Array Storage Large Storage Unit Processor Visual Processing Unit Weapon Heavy Particle Gun Energy Gun Heavy Particle Gun Ballistic Gun Light Assault Rifle Build | -11 -10 -9 -9 ------- Run | Yrd Mat Mat Min Slots Evolved 2 | . . 2 . Power . | . . . . Propulsion 2 | . . 2 . Utility . | . . . . Weapon . | . . . . Parts Attached 38 | 8 9 19 2 Power 5 | 1 1 3 . Engine 5 | 1 1 3 . Core . | . . . . Reactor . | . . . . Propulsion 14 | 2 2 10 . Treads . | . . . . Leg 2 | 2 . . . Wheel . | . . . . Hover 3 | . . 3 . Flight 9 | . 2 7 . Utility 8 | 2 4 2 . Device 1 | . 1 . . Storage 6 | 2 2 2 . Processor 1 | . 1 . . Hackware . | . . . . Protection . | . . . . Artifact . | . . . . Weapon 11 | 3 2 4 2 Energy Gun 4 | . . 3 1 Energy Cannon . | . . . . Ballistic Gun 7 | 3 2 1 1 Ballistic Cannon . | . . . . Launcher . | . . . . Special Weapon . | . . . . Impact Weapon . | . . . . Slashing Weapon . | . . . . Piercing Weapon . | . . . . Special Melee Weapon . | . . . . Unidentified Prototypes 1 | . . 1 . Parts Lost 13 | . . 7 6 Power 3 | . . 2 1 Propulsion 8 | . . 5 3 Utility . | . . . . Weapon 2 | . . . 2 Highest Loss Streak 5 | . . 3 5 To Critical Strikes . | . . . . Average Slot Usage (%) 82 | . 99 81 47 Engine 10 | . 14 10 3 Leg 1 | . 7 . . Hover 3 | . . 5 . Flight 21 | . 20 23 10 Storage 13 | . 19 11 11 Processor 10 | . 7 11 11 Energy Gun 13 | . . 18 7 Ballistic Gun 7 | . 27 1 4 Naked Turns . | . . . . Heaviest Build 29 | 19 25 29 26 Greatest Support 20 | 20 20 18 12 Greatest Overweight (x) 8 | 1 3 8 7 Average Overweight (x) 1 | . . 2 4 Largest Inventory Capacity 25 | 8 15 25 15 Average Capacity 13 | 7 10 15 15 Most Carried 13 | 7 8 13 10 Average Carried 8 | 3 6 10 9 Final Capacity 15 | 8 15 15 15 Final Carried 10 | 5 7 10 8 Class Distribution -------------------- 54% | Mutant 45% | Scavenger-Mutant Dominant Class ---------------- Scavenger-Mutant | -10/Materials Mutant | -9/Materials Mutant | -9/Mines Resources | -11 -10 -9 -9 ----------- Run | Yrd Mat Mat Min Matter Collected 689 | 304 144 210 31 Remotely . | . . . . Salvage Created 1485 | 147 377 932 29 Parts 96 | 11 23 62 . Haulers Intercepted . | . . . . Recyclers Shooed 6 | . 2 4 . Parts Field Recycled . | . . . . Retrieved Matter . | . . . . Parts Self-Destructed . | . . . . Prevented . | . . . . Kills | -11 -10 -9 -9 ------- Run | Yrd Mat Mat Min Combat Hostiles Destroyed 24 | . 5 15 4 Guns 23 | . 5 14 4 Classes Destroyed 10 | 2 3 3 2 Worker 1 | . . 1 . Builder 1 | . . 1 . Tunneler 4 | 3 . 1 . Recycler 7 | 1 3 3 . Watcher 4 | . 1 3 . Swarmer 8 | . 3 5 . Grunt 7 | . 2 5 . Sentry 5 | . . 5 . Demolisher 2 | . . . 2 Assembled 2 | . . . 2 Best Kill Streak 6 | 3 4 6 2 Combat Bots Only 4 | . 3 4 2 Max Kills in Single Turn 1 | 1 1 1 1 Gunslinging . | . . . . Exploded . | . . . . Melee . | . . . . Uniques/NPCs Destroyed . | . . . . Combat | -11 -10 -9 -9 -------- Run | Yrd Mat Mat Min Hostile Shots Fired 143 | . 30 79 34 Missed 32 | . 4 19 9 Damage Taken 1338 | . 195 517 626 Core 455 | . 50 103 302 Absorbed by Shields . | . . . . Ignored by Resistances 390 | . 62 156 172 Core Remaining (%) 90 | 100 80 . . Volleys Fired 111 | 4 35 53 19 Largest 2 | 2 2 2 2 Hottest 110 | 40 40 110 75 Shots Fired 202 | 8 70 104 20 Gun 202 | 8 70 104 20 Cannon . | . . . . Launcher . | . . . . Special . | . . . . Kinetic 86 | 8 70 . 8 Thermal 116 | . . 104 12 Explosive . | . . . . Electromagnetic . | . . . . Robot Hit Streak 22 | 7 19 22 10 Robot Miss Streak 7 | . 7 4 2 Penetration Max . | . . . . Secondary Targets 5 | . 1 4 . Max Gunslinging Chain 1 | . 1 1 . Shots Hit Robots 136 | 7 48 68 13 Core Hits 52 | 4 16 25 7 Critical Kills 1 | 1 . . . Critical Parts Destroyed . | . . . . Critical Strikes 6 | 1 . 3 2 Burn 5 | . . 3 2 Destroy 1 | 1 . . . Melee Attacks . | . . . . Impact . | . . . . Slashing . | . . . . Piercing . | . . . . Sneak Attacks . | . . . . Combat Hostiles . | . . . . Follow-up Attacks . | . . . . Damage Inflicted 2152 | 92 446 1333 281 Guns 2142 | 92 442 1327 281 Cannons . | . . . . Explosions . | . . . . Melee . | . . . . Ramming 10 | . 4 6 . Kinetic 688 | 92 442 . 154 Thermal 1454 | . . 1327 127 Explosive . | . . . . Electromagnetic . | . . . . Impact . | . . . . Slashing . | . . . . Piercing . | . . . . Highest Corruption . | . . . . Average Corruption . | . . . . Corruption Purged . | . . . . Corruption Blocked . | . . . . Overload Shots . | . . . . Overflow Damage . | . . . . Projectiles . | . . . . Explosions . | . . . . Melee . | . . . . Knockbacks . | . . . . Impact . | . . . . Kinetic . | . . . . Secondary . | . . . . Self-Inflicted Damage 5 | . 2 3 . Shots . | . . . . Rammed 2 | . 1 1 . Targets Rammed 2 | . 1 1 . Kicked . | . . . . Crushed . | . . . . Highest Temperature 477 | . 40 477 53 Average Temperature 117 | . 12 144 33 Received Heat Transfer 345 | . 102 183 60 Effects 2 | . . 2 . Shutdowns 1 | . . 1 . Energy Bleed 1 | . . 1 . Siege Activations . | . . . . Robots Corrupted . | . . . . Combat Hostiles . | . . . . Parts Fried . | . . . . Impact Corruptions . | . . . . Robots Melted 1 | . . 1 . Combat Hostiles 1 | . . 1 . Parts Melted 3 | . . 3 . Heat Transferred 3219 | . . 2812 407 Parts Sabotaged . | . . . . Parts Stolen . | . . . . Parts Stripped . | . . . . Power Chain Reactions . | . . . . Alert | -11 -10 -9 -9 ------- Run | Yrd Mat Mat Min Peak Influence 201 | 20 188 201 44 Initial 44 | . 11 . 44 Average 71 | 6 109 65 41 Maximum Alert Level 1 | . . 1 . Low Security (%) 96 | 100 100 94 100 Level 1 3 | . . 5 . Level 2 . | . . . . Level 3 . | . . . . Level 4 . | . . . . Level 5 . | . . . . High Security . | . . . . Max Security . | . . . . Squads Dispatched 1 | . . 1 . Investigation . | . . . . Extermination . | . . . . Reinforcement 1 | . . 1 . Assault . | . . . . Garrison . | . . . . Intercept . | . . . . Searches Triggered . | . . . . Construction Impeded . | . . . . Haulers Reinforced . | . . . . Active Scanning Responses . | . . . . Cargo Convoy Interrupts . | . . . . Stealth | -11 -10 -9 -9 --------- Run | Yrd Mat Mat Min Distress Signals 3 | . 1 2 . Communications Jammed . | . . . . Distress Signals . | . . . . Times Spotted 44 | . 10 25 9 Peak Tracking Total 6 | . 3 6 4 Tactical Retreats 1 | . . . 1 Traps | -11 -10 -9 -9 ------- Run | Yrd Mat Mat Min Traps Triggered . | . . . . Indirectly . | . . . . Trap Hack Attempts . | . . . . Triggered . | . . . . Disarmed . | . . . . Reprogrammed . | . . . . Reused . | . . . . Traps Extracted . | . . . . Installed . | . . . . Triggered . | . . . . Machines | -11 -10 -9 -9 ---------- Run | Yrd Mat Mat Min Machines Disabled . | . . . . Max in Single Turn . | . . . . Machines Repaired . | . . . . Machines Dismantled . | . . . . Machines Sabotaged . | . . . . Overloaded Fab Kills . | . . . . Hacking | -11 -10 -9 -9 --------- Run | Yrd Mat Mat Min Machines Accessed 2 | . . 2 . Terminals . | . . . . Fabricators . | . . . . Repair Stations . | . . . . Recycling Units 1 | . . 1 . Scanalyzers 1 | . . 1 . Garrison Access . | . . . . Total Hacks 3 | . . 3 . Successful 3 | . . 3 . Failed . | . . . . Catastrophic . | . . . . Database Lockouts . | . . . . Manual . | . . . . Terminals . | . . . . Fabricators . | . . . . Repair Stations . | . . . . Recycling Units 1 | . . 1 . Scanalyzers 2 | . . 2 . Garrison Access . | . . . . Terminal Hacks . | . . . . Fabricator Hacks . | . . . . Repair Station Hacks . | . . . . Recycling Unit Hacks 1 | . . 1 . Retrieve Components 1 | . . 1 . Scanalyzer 2 | . . 2 . Insert Component 1 | . . 1 . Analyze 1 | . . 1 . Garrison Access Hacks . | . . . . Unauthorized Hacks . | . . . . Terminals . | . . . . Fabricators . | . . . . Repair Stations . | . . . . Recycling Units . | . . . . Scanalyzers . | . . . . Garrison Access . | . . . . Data Cores Recovered . | . . . . Used . | . . . . Hacking Detections . | . . . . Full Trace Events . | . . . . Feedback Events . | . . . . Feedback Blocked . | . . . . Robot Schematics Acquired . | . . . . Robots Built . | . . . . Authchips . | . . . . Time . | . . . . Total Robot Build Rating . | . . . . Part Schematics Acquired 1 | . . 1 . Parts Built . | . . . . Authchips . | . . . . Time . | . . . . Total Part Build Rating . | . . . . Parts Repaired . | . . . . Time . | . . . . Parts Recycled . | . . . . Recycled Matter . | . . . . Retrieved Matter . | . . . . Retrieved Components 9 | . . 9 . Parts Scanalyzed 1 | . . 1 . Part Schematics Acquired 1 | . . 1 . Parts Damaged . | . . . . Bothacking | -11 -10 -9 -9 ------------ Run | Yrd Mat Mat Min Used RIF Installer . | . . . . Robots Hacked . | . . . . Non-combat . | . . . . Combat . | . . . . Robot Hacks Applied . | . . . . Relay Couplers Released . | . . . . Fabnet Peak Effective % . | . . . . Robots Rewired . | . . . . Allies Hacked . | . . . . Hacks Repelled . | . . . . Allies | -11 -10 -9 -9 -------- Run | Yrd Mat Mat Min Total Allies . | . . . . Largest Group . | . . . . Highest-Rated Group . | . . . . Highest-Rated Ally . | . . . . Total Orders . | . . . . Ally Attacks . | . . . . Total Damage . | . . . . Kills . | . . . . Allies Corrupted . | . . . . Allies Melted . | . . . . Intel | -11 -10 -9 -9 ------- Run | Yrd Mat Mat Min Robot Analysis Total . | . . . . Derelict Logs Recovered . | . . . . Drone Launches . | . . . . Drone Recoveries . | . . . . Exploration | -11 -10 -9 -9 ------------- Run | Yrd Mat Mat Min Turns Passed 1673 | 70 402 1056 145 Spaces Moved 692 | 42 200 414 36 Core 48 | 23 . 8 17 Treads . | . . . . Legs 90 | 19 71 . . Wheels . | . . . . Hover 81 | . . 81 . Flight 473 | . 129 325 19 Fastest Speed 37 | 50 37 111 194 Average Speed 176 | 92 140 192 291 Slowest Speed 450 | 120 277 450 400 Overloaded Moves . | . . . . Propulsion Burnouts . | . . . . Robots Hopped . | . . . . Cave-ins Triggered . | . . . . Exploration Rate (%) 25 | 3 46 39 13 Regions Visited 3 Branch Regions 1 Pre-discovered Areas . | . . . . Known Exits Taken . | . . . . Unknown Exits Taken 3 | 1 1 1 . Scrap Searched . | . . . . Spaces Dug . | . . . . Terrain Destroyed 1 | . . . 1 Melee . | . . . . Projectile 1 | . . . 1 AOE . | . . . . Terrain Rammed . | . . . . Walls Destroyed . | . . . . Machines Disabled . | . . . . Actions | -11 -10 -9 -9 --------- Run | Yrd Mat Mat Min Total 954 | 64 263 570 57 Wait 57 | . . 57 . Move 689 | 41 199 413 36 Hop . | . . . . Pick Up 39 | 11 10 18 . Fast Attach 5 | 1 4 . . Attach 24 | 6 2 14 2 Detach 1 | . . 1 . Swap 9 | 1 3 5 . Drop 17 | . 9 8 . Fire 111 | 4 35 53 19 Melee . | . . . . Ram 2 | . 1 1 . Kick . | . . . . Crush . | . . . . Escape Stasis . | . . . . Rewire . | . . . . Trap . | . . . . Miscellaneous . | . . . . Route ------- -11/Scrapyard -10/Materials -9/Materials -9/Mines History --------- Turn | Location | Event 3 | -11/Scrapyard | Discovered new exit (range 15) 71 | -11/Scrapyard | Entered Materials 440 | -10/Materials | Discovered new exit (range 12) 473 | -10/Materials | Entered another Materials area 473 | -9/Materials | Evolved 2 slots: Propulsion x2 494 | -9/Materials | Build established: Scavenger-Mutant 805 | -9/Materials | Build established: Mutant 1248 | -9/Materials | Lost 3 parts (2p1n) 1496 | -9/Materials | Discovered new exit (range 17) 1529 | -9/Materials | Entered Mines 1534 | -9/Mines | Assembled infested the area 1557 | -9/Mines | Build established: Scavenger-Mutant 1577 | -9/Mines | Core integrity fell below 50% 1609 | -9/Mines | Lost 5 parts (1p3n1w) 1662 | -9/Mines | Core integrity fell below 20% 1674 | -9/Mines | Destroyed by as-73235 with Assembled Blade Last Messages --------------- K-01 Serf system corrupted by crushing effect. K-01 Serf destroyed. U-05 Engineer lays Concrete. U-05 Engineer builds a Wall. as-36976 destroyed. as-66756 destroyed. U-05 Engineer builds a Wall. The unstable cave ceiling collapses. as-73235 sneak attacks. K-01 Serf collects debris. U-05 Engineer destroyed. Acquired 10 matter. as-73235 suffers critical hit (Burn). Acquired 1 matter. Hvy. Particle Gun destroyed. Acquired 1 matter. The unstable cave ceiling collapses. R-06 Scavenger crushed by falling debris. R-06 Scavenger system corrupted by crushing effect. Sml. Matter Pod crushed. Map ----- +----------------------------------------------------+ | ???????????????????????????????????????????????? | | ???????????????????????????????????????????????? | | ???????????????????????????????????????????????? | | ???????????????????????????????????????????????? | | ???????????????????????????????????????????????? | | ???????????????????????????????????????????????? | | ???????????????????????????????????????????????? | | ???????????????????????????????????????????????? | | ???????????????????????????????????????????????? | | ???????????????????????????????????????????????? | | ???????????????????????????????????????????????? | | ???????????????????????????????????????????????? | | ???????????????????????????????????????????????? | | ???????????????????????????????????????????????? | | ???????????????????????????????????????????????? | | ???????????????????????????????????????????????? | | ?????????????????????????????? #???????????????? | | ?????????????????????????????? #???????????????? | | ?????????????????????????????? ????????????????? | | ?????????????????????????????? ????????????????? | | ????????????????????????##???? #???????????????? | | ???????????!!???????###?# ###? ???????????????? | | ??????????!!! ###?# ## ## #???????????????? | | ???????? # # #???????????????? | | ???????? # ## ### ????????????????? | | ?????????????# a@r## ????????????????? | | ????????????# !% # ##a#a## #????????????????? | | ????????????????????# a% # #????????????????? | | ????????????????????## ##%##%#????????????????? | | ?????????????????????#### % #????????????????? | | ???????????????????????# ### #????????????????? | | ???????????????????????###### ###??????????????? | | ?????????????????????????## # ###????????????? | | ????????????????????????## # #????????????? | | ????????????????????????# # ##???????????? | | ???????????????????????## #???????????? | | ???????????????????????# ##???????????? | | ???????????????????????# ##????????????? | | ???????????????????????## ##????????????? | | ?????????????????????##### #????????????? | | ?????????????????????# ##????????????? | | ?????????????????????# #?????????????? | | ?????????????????????# ## #????????????? | | ?????????????????????# ### ???????? | | ?????????????????????# ### ## # #??????? | | ?????????????????????# ## #?#####?????????? | | ?????????????????????## ## ???????????????? | | ?????????????????????## ## ??????????????? | | ????????????????????## ### #?????????????? | | ????????????????????# #### ##?????????????? | +----------------------------------------------------+ Best States ------------- Heat Dissipation 28 Energy Generation 10 Energy Capacity 250 Matter Stores 300 Matter Capacity 300 Sight Range 18 Robot Scan Range 14 Terrain Scan Density 10 Resistance: KI 20 Resistance: TH 20 Resistance: EX 20 Resistance: EM 20 Resistance: I 20 Resistance: S 20 Resistance: P 20 Evasion (%) 62 Offensive Hacking 10 Item Schematics ----------------- Lgt. Assault Rifle | -9/Materials | Scanalyzed Robot Schematics ------------------ None Fabricated ------------ Nothing Alien Tech Used ----------------- None Achievements -------------- None Challenges ------------ None Game ------ Seed CoolantForceBlade Manual? 0 Play Time 00:17:30 Cumulative 12.7 hours Start 2024.05.30 @ 06:18:39 End 2024.05.30 @ 06:34:46 Sessions 1 Manual Loads 0 Difficulty Adventurer Special Mode None Game No. 17 Rogue 0 Adventurer 17 Explorer 0 Win Type - Total 0 Types 0/0/0/0/0/0/0/0/0 Lore% 5 Gallery% 23 Achievement% 19 Wizard Run 0 Options --------- Layout 1 ASCII 0 Keyboard 0 Movement Mouse Keybinds 0 Fullscreen 2 Font 42/SmallcapsGlow Map View 56x38 Zoom Use 0% Tactical HUD 0 Map Filters NONE Filters NONE Steam 1 RUN: 29653336-13f4-4f8b-8964-a46e026e574e